Workbook

Sheet Budget (hidden)
A1: Money Monster Theater Company
A2: 2017 Budget
G4: 2017 BUDGET
A5: Income
B6: Contributed Income
C7: Corporate Donations | G7: 0
C8: Foundation Contributions | G8: 0
C9: Gov't Contributions | G9: 0
C10: Individual Donations
D11: Board Giving | G11: 0
D12: Individual Giving | G12: 0
C13: Total Individual Donations | G13: =SUM(G11:G12) -> 0
B14: Total Contributed Income | G14: =SUM(G7:G9)+G13 -> 0
B15: Earned Income
C16: Advertising | G16: 0
C17: Interest | G17: 0
C18: Rentals | G18: 0
C19: Ticket Sales | G19: 0
C20: Workshops | G20: 0
B21: Total Earned Income | G21: =SUM(G16:G20) -> 0
A22: Total Income | G22: =G14+G21 -> 0
A24: Expenses
B25: Personnel Expenses
C26: Salaries & Benefits | G26: 0
C27: Contractors
D28: Admin Contractors
E29: Managing Director | G29: 0
E30: Admin Assistant | G30: 0
D31: Total Admin Contractors | G31: =SUM(G29:G30) -> 0
D32: Artistic Contractors
E33: Actors | G33: 0
E34: Designers | G34: 0
E35: Directors | G35: 0
E36: Playwrights | G36: 0
D37: Total Artistic Contractors | G37: =SUM(G33:G36) -> 0
D38: Program Contractors
E39: Box Office | G39: 0
E40: Stage Manager | G40: 0
E41: Tech Director | G41: 0
D42: Total Program Contractors | G42: =SUM(G39:G41) -> 0
C43: Total Contractors | G43: =SUM(G31+G37+G42) -> 0
B44: Operating Expenses
C45: Advertising & Marketing | G45: 0
C46: Catering & Hospitality | G46: 0
C47: Insurance | G47: 0
C48: Office Supplies | G48: 0
C49: Printing & Copying | G49: 0
C50: Postage & Shipping | G50: 0
C51: Rent & Utilities | G51: 0
C52: Travel | G52: 0
B53: Total Operating Expenses | G53: =SUM(G45:G52) -> 0
B54: Program Expenses
C55: Costumes | G55: 0
C56: Program Supplies & Materials | G56: 0
C57: Space & Theatre Rental | G57: 0
B58: Total Program Expenses | G58: =SUM(G55:G57) -> 0
A59: Total Expenses | G59: =SUM(G43+G53+G58) -> 0
A60: NET FOR YEAR | G60: =G22-G59 -> 0

Sheet Project Budget
A1: Budget Template: Final Project Budget
F4: Total Budget
A5: Income
B6: Earned Income
C7: Concessions | F7: 0
C8: Merchandise Sales | F8: 0
C9: Sponsorships | F9: 0
C10: Ticket Sales | F10: 0
C11: Other Earned Income | F11: 0
B12: Total Earned Income | F12: =SUM(F7:F11) -> 0
B13: Contributed Income
C14: Corporate Donations | F14: 0
C15: Foundation Contributions | F15: 0
C16: Gov't Contributions | F16: 0
C17: Individual Donations | F17: 0
C18: In-Kind Donations | F18: 0
B19: Total Contributed Income | F19: =SUM(F14:F18) -> 0
A20: Total Income | F20: =F19+F12 -> 0
A21: Expenses
B22: Personnel Expenses
C23: Actors
C24: Designers
C25: Directors | F25: 0
C26: Graphic Design | F26: 0
C27: Production Manager | F27: 0
C28: Photographers & Videographers | F28: 0
C29: Stage Manager | F29: 0
C30: Other Contractors | F30: =SUM(F25:F29) -> 0
C31: Total Contractors | F31: =SUM(F23:F30) -> 0
B32: Total Personnel Expenses | F32: =F31 -> 0
B33: Admin Expenses
C34: Insurance | F34: 0
C35: Office Rent | F35: 0
C36: Office Supplies & Software | F36: 0
C37: Printing & Copying | F37: 0
C38: Telephone & Internet | F38: 0
C39: Other Admin Expenses | F39: 0
B40: Total Admin Expenses | F40: =SUM(F34:F39) -> 0
B41: Program Expenses
C42: Advertising & Marketing | F42: 0
C43: Costumes | F43: 0
C44: Catering & Meals | F44: 0
C45: Productions Supplies & Equipment | F45: 0
C46: Production Travel | F46: 0
C47: Prop & Set Expenses | F47: 0
C48: Venue Rental | F48: 0
C49: Other Program Expenses | F49: 0
B50: Total Program Expenses | F50: =SUM(F42:F49) -> 0
A51: Total Expenses | F51: =F32+F40+F50 -> 0
A52: NET | F52: =F20-F51 -> 0

Sheet Budget Possibilities
A1: Budget Template: Different Possibilities
F4: POSSIBILITY 1 | G4: POSSIBILITY 2 | H4: POSSIBILITY 3
A5: Income
B6: Earned Income
C7: Concessions | F7: 0 | G7: 0 | H7: 0
C8: Merchandise Sales | F8: 0 | G8: 0 | H8: 0
C9: Sponsorships | F9: 0 | G9: 0 | H9: 0
C10: Ticket Sales | F10: 0 | G10: 0 | H10: 0
C11: Other Earned Income | F11: 0 | G11: 0 | H11: 0
B12: Total Earned Income | F12: =SUM(F7:F11) -> 0 | G12: =SUM(G7:G11) -> 0 | H12: 0
B13: Contributed Income
C14: Corporate Donations | F14: 0 | G14: 0 | H14: 0
C15: Foundation Contributions | F15: 0 | G15: 0 | H15: 0
C16: Gov't Contributions | F16: 0 | G16: 0 | H16: 0
C17: Individual Donations | F17: 0 | G17: 0 | H17: 0
C18: In-Kind Donations | F18: 0 | G18: 0 | H18: 0
B19: Total Contributed Income | F19: =SUM(F14:F18) -> 0 | G19: =SUM(G14:G18) -> 0 | H19: =SUM(H14:H18) -> 0
A20: Total Income | F20: =F19+F12 -> 0 | G20: =G19+G12 -> 0 | H20: =H19+H12 -> 0
A21: Expenses
B22: Personnel Expenses
C23: Actors
C24: Designers
C25: Directors | F25: 0 | G25: 0 | H25: 0
C26: Graphic Design | F26: 0 | G26: 0 | H26: 0
C27: Production Manager | F27: 0 | G27: 0 | H27: 0
C28: Photographers & Videographers | F28: 0 | G28: 0 | H28: 0
C29: Stage Manager | F29: 0 | G29: 0 | H29: 0
C30: Other Contractors | F30: =SUM(F25:F29) -> 0 | G30: =SUM(G25:G29) -> 0 | H30: =SUM(H25:H29) -> 0
C31: Total Contractors | F31: =SUM(F23:F30) -> 0 | G31: =SUM(G23:G30) -> 0 | H31: =SUM(H23:H30) -> 0
B32: Total Personnel Expenses | F32: =F31 -> 0 | G32: =G31 -> 0 | H32: =H31 -> 0
B33: Admin Expenses
C34: Insurance | F34: 0 | G34: 0 | H34: 0
C35: Office Rent | F35: 0 | G35: 0 | H35: 0
C36: Office Supplies & Software | F36: 0 | G36: 0 | H36: 0
C37: Printing & Copying | F37: 0 | G37: 0 | H37: 0
C38: Telephone & Internet | F38: 0 | G38: 0 | H38: 0
C39: Other Admin Expenses | F39: 0 | G39: 0 | H39: 0
B40: Total Admin Expenses | F40: =SUM(F34:F39) -> 0 | G40: =SUM(G34:G39) -> 0 | H40: =SUM(H34:H39) -> 0
B41: Program Expenses
C42: Advertising & Marketing | F42: 0 | G42: 0 | H42: 0
C43: Costumes | F43: 0 | G43: 0 | H43: 0
C44: Catering & Meals | F44: 0 | G44: 0 | H44: 0
C45: Productions Supplies & Equipment | F45: 0 | G45: 0 | H45: 0
C46: Production Travel | F46: 0 | G46: 0 | H46: 0
C47: Prop & Set Expenses | F47: 0 | G47: 0 | H47: 0
C48: Venue Rental | F48: 0 | G48: 0 | H48: 0
C49: Other Program Expenses | F49: 0 | G49: 0 | H49: 0
B50: Total Program Expenses | F50: =SUM(F42:F49) -> 0 | G50: =SUM(G42:G49) -> 0 | H50: =SUM(H42:H49) -> 0
A51: Total Expenses | F51: =F32+F40+F50 -> 0 | G51: =G32+G40+G50 -> 0 | H51: =H32+H40+H50 -> 0
A52: NET | F52: =F20-F51 -> 0 | G52: =G20-G51 -> 0 | H52: =H20-H51 -> 0

Sheet Cashflow (hidden)
A1: Money Monster Theater Company
A2: 2017 Sample Cashflow
A4: Cash in Bank Account at 1/1/16: $10,025
G5: Q1 | H5: Q2 | I5: Q3 | J5: Q4 | K5: TOTAL
A6: Income | F6: Starting Cash | G6: 10025 | H6: =G61 -> 9169 | I6: =H61 -> 7088 | J6: =I61 -> 10122
B7: Contributed Income
C8: Corporate Donations | G8: 0 | H8: 250 | I8: 250 | J8: 0 | K8: =SUM(G8:J8) -> 500
C9: Foundation Contributions | G9: 0 | H9: 5000 | I9: 0 | J9: 5000 | K9: 10000
C10: Gov't Contributions | G10: 2500 | H10: 0 | I10: 0 | J10: 0 | K10: 2500
C11: Individual Donations
D12: Board Giving | G12: =1500/4 -> 375 | H12: =1500/4 -> 375 | I12: =1500/4 -> 375 | J12: =1500/4 -> 375 | K12: =SUM(G12:J12) -> 1500
D13: Individual Giving | G13: 500 | H13: 3000 | I13: 4000 | J13: 500 | K13: 8000
C14: Total Individual Donations | G14: =SUM(G12:G13) -> 875 | H14: 3375 | I14: 4375 | J14: 875 | K14: 9500
B15: Total Contributed Income | G15: =SUM(G8:G10)+G14 -> 3375 | H15: 8625 | I15: 4625 | J15: 5875 | K15: 22500
B16: Earned Income
C17: Advertising | G17: 0 | H17: 250 | I17: 250 | J17: 0 | K17: =SUM(G17:J17) -> 500
C18: Interest | G18: 4 | H18: 4 | I18: 4 | J18: 3 | K18: 15
C19: Rentals | G19: 700 | H19: 700 | I19: 700 | J19: 700 | K19: 2800
C20: Ticket Sales | G20: 0 | H20: 1000 | I20: 7000 | J20: 0 | K20: 8000
C21: Workshops | G21: 1250 | H21: 1250 | I21: 1250 | J21: 1250 | K21: 5000
B22: Total Earned Income | G22: =SUM(G17:G21) -> 1954 | H22: 3204 | I22: 9204 | J22: 1953 | K22: 16315
A23: Total Income | G23: =G15+G22 -> 5329 | H23: 11829 | I23: 13829 | J23: 7828 | K23: 38815
A25: Expenses
B26: Personnel Expenses
C27: Salaries & Benefits | G27: 0 | H27: 0 | I27: 0 | J27: 0 | K27: =SUM(G27:J27) -> 0
C28: Contractors
D29: Admin Contractors
E30: Managing Director | G30: =6000/4 -> 1500 | H30: =6000/4 -> 1500 | I30: =6000/4 -> 1500 | J30: =6000/4 -> 1500 | K30: =SUM(G30:J30) -> 6000
E31: Admin Assistant | G31: 600 | H31: 600 | I31: 600 | J31: 600 | K31: 2400
D32: Total Admin Contractors | G32: =SUM(G30:G31) -> 2100 | H32: 2100 | I32: 2100 | J32: 2100 | K32: 8400
D33: Artistic Contractors
E34: Actors | G34: 0 | H34: 1200 | I34: 1600 | J34: 0 | K34: =SUM(G34:J34) -> 2800
E35: Designers | G35: 0 | H35: 200 | I35: 800 | J35: 0 | K35: 1000
E36: Directors | G36: 0 | H36: 500 | I36: 1000 | J36: 0 | K36: 1500
E37: Playwrights | G37: 500 | H37: 500 | I37: 0 | J37: 0 | K37: 1000
D38: Total Artistic Contractors | G38: =SUM(G34:G37) -> 500 | H38: 2400 | I38: 3400 | J38: 0 | K38: 6300
D39: Program Contractors
E40: Box Office | G40: 0 | H40: 0 | I40: 250 | J40: 0 | K40: =SUM(G40:J40) -> 250
E41: Stage Manager | G41: 0 | H41: 0 | I41: 250 | J41: 0 | K41: 250
E42: Tech Director | G42: 0 | H42: 450 | I42: 450 | J42: 0 | K42: 900
D43: Total Program Contractors | G43: =SUM(G40:G42) -> 0 | H43: 450 | I43: 950 | J43: 0 | K43: 1400
C44: Total Contractors | G44: =SUM(G32+G38+G43) -> 2600 | H44: 4950 | I44: 6450 | J44: 2100 | K44: 16100
B45: Operating Expenses
C46: Advertising & Marketing | G46: 500 | H46: 2000 | I46: 1000 | J46: 0 | K46: =SUM(G46:J46) -> 3500
C47: Catering & Hospitality | G47: 100 | H47: 150 | I47: 200 | J47: 50 | K47: 500
C48: Insurance | G48: 300 | H48: 300 | I48: 300 | J48: 300 | K48: 1200
C49: Office Supplies | G49: 160 | H49: 160 | I49: 170 | J49: 160 | K49: 650
C50: Printing & Copying | G50: 150 | H50: 250 | I50: 450 | J50: 50 | K50: 900
C51: Postage & Shipping | G51: 50 | H51: 150 | I51: 50 | J51: 50 | K51: 300
C52: Rent & Utilities | G52: 1200 | H52: 1200 | I52: 1200 | J52: 1200 | K52: 4800
C53: Travel | G53: 25 | H53: 50 | I53: 75 | J53: 50 | K53: 200
B54: Total Operating Expenses | G54: =SUM(G46:G53) -> 2485 | H54: 4260 | I54: 3445 | J54: 1860 | K54: 12050
B55: Program Expenses
C56: Costumes | G56: 0 | H56: 300 | I56: 400 | J56: 0 | K56: =SUM(G56:J56) -> 700
C57: Program Supplies & Materials | G57: 100 | H57: 400 | I57: 500 | J57: 0 | K57: 1000
C58: Space & Theatre Rental | G58: 1000 | H58: 4000 | I58: 0 | J58: 0 | K58: 5000
B59: Total Program Expenses | G59: =SUM(G56:G58) -> 1100 | H59: 4700 | I59: 900 | J59: 0 | K59: 6700
A60: Total Expenses | G60: =SUM(G44+G54+G59) -> 6185 | H60: 13910 | I60: 10795 | J60: 3960 | K60: 34850
A61: Running Balance | G61: =G6+G23-G60 -> 9169 | H61: =H6+H23-H60 -> 7088 | I61: =I6+I23-I60 -> 10122 | J61: =J6+J23-J60 -> 13990 | K61: =K6+K23-K60 -> 3965
J62: Ending Cash Balance at 12/31/17
